bitfinex-derivatives/quotes_ETHF0:USTF0_20250326
["timestamp","ask_amount","ask_price","bid_price","bid_amount"]
[1742960825040,3.2078,2045.2,2045.1,0.97782]
[1742960825242,3.8924,2045.2,2045.1,0.97782]
[1742960825942,3.2078,2045.5,2045.1,3.08756]
[1742960826143,0.6719,2045.4,2045.3,0.97769]
[1742960827243,2.0837,2045.4,2045.3,0.97769]
[1742960828148,3.06138,2045.4,2045.3,0.97769]
[1742960828953,3.06138,2045.4,2045.2,0.97776]
[1742960828954,0.97774,2045.3,2045.2,0.97776]
[1742960829253,1.2789,2045.3,2045.2,0.97776]
[1742960829442,3.2078,2045.5,2045.4,0.97768]
[1742960830047,3.2078,2045.5,2045.4,2.36098]
[1742960830857,4.5865,2045.5,2045.4,2.36098]
[1742960835149,3.2078,2045.5,2045.4,2.36098]
[1742960835550,4.5089,2045.5,2045.4,2.36098]
[1742960836964,5.191,2045.5,2045.4,2.36098]
[1742960837156,4.5089,2045.5,2045.4,2.36098]
[1742960837949,0.00733335,2045.6,2045.5,0.97763]
[1742960838155,0.00733335,2045.6,2045.5,7.76143]
[1742960838353,3.2078,2045.8,2045.7,0.97754]
[1742960838551,1.3268,2046.1,2046.0,0.97739]
[1742960838958,1.3268,2046.1,2046.0,41.77739]
[1742960839267,3.2078,2046.3,2046.2,0.9773]
[1742960839567,3.2078,2046.3,2046.1,2.28111]
[1742960840255,3.2078,2046.3,2046.1,1.3038]
[1742960840462,3.2078,2046.3,2046.2,0.9773]
[1742960842265,4.18509,2046.3,2046.0,4.19251335]
[1742960842458,1.3386,2046.2,2046.0,4.19251335]
[1742960842759,1.3386,2046.2,2046.0,4.19249335]
[1742960842961,0.6417,2046.1,2046.0,4.19249335]
[1742960843772,0.6417,2046.1,2046.0,5.56879335]
[1742960844473,0.6417,2046.1,2046.0,4.59143335]
[1742960844769,0.6417,2046.1,2046.0,5.56882335]
[1742960844982,1.9748,2046.1,2046.0,5.56882335]
[1742960845160,1.9748,2046.1,2046.0,4.59143335]
[1742960845361,1.9748,2046.1,2046.0,5.56882335]
[1742960846365,1.9748,2046.1,2046.0,2.36102335]
[1742960846870,1.9748,2046.1,2046.0,1.38363335]
[1742960847171,1.9748,2046.1,2046.0,2.36102335]
[1742960849071,2.95215,2046.1,2046.0,0.00733335]
[1742960849285,0.97752,2045.8,2045.5,6.9161]
[1742960849473,0.97752,2045.8,2045.5,6.2085]
[1742960849666,1.9944,2045.7,2045.6,41.77759]
[1742960849863,1.2928,2045.7,2045.6,0.97759]
[1742960850058,0.6822,2046.0,2045.9,0.97744]
[1742960850265,1.975,2046.0,2045.9,0.97744]
[1742960850766,2.9524,2046.0,2045.8,0.97749]
[1742960850970,1.2928,2045.9,2045.8,2.35379]
[1742960851172,1.2928,2045.9,2045.8,2.99859]
[1742960851673,2.27026,2045.9,2045.5,3.8923]
[1742960851876,1.2928,2045.9,2045.8,0.97749]
[1742960852078,0.6822,2046.0,2045.9,0.97744]
[1742960852371,0.97744,2045.9,2045.8,40.8]
[1742960852764,1.65962,2046.0,2045.8,41.77749]
[1742960852960,0.97744,2045.9,2045.8,41.77749]
[1742960853161,0.6822,2046.0,2045.8,41.77749]
[1742960853574,0.6822,2046.0,2045.9,0.97744]
[1742960853874,0.6822,2046.0,2045.9,4.18524]
[1742960854069,0.6822,2046.0,2045.9,6.89954]
[1742960854465,1.65959,2046.0,2045.9,4.88254]
[1742960854875,0.6822,2046.0,2045.9,4.88254]
[1742960855677,0.6822,2046.0,2045.9,6.27084]
[1742960856168,4.24332,2046.2,2045.9,5.2934]
[1742960856375,1.64985,2046.1,2046.0,0.97735]
[1742960856878,0.97739,2046.0,2045.9,6.27081]
[1742960857174,0.97739,2046.0,2045.9,4.88251]
[1742960858071,0.97739,2046.0,2045.9,3.2078]
[1742960858271,0.97754,2045.7,2045.6,3.02047]
[1742960858475,3.2078,2045.8,2045.4,0.6409]
[1742960858791,0.97762,2045.6,2045.5,40.8]
[1742960859179,0.97762,2045.6,2045.5,0.97763]
[1742960859374,0.97762,2045.6,2045.4,1.66855]
[1742960859567,0.97762,2045.6,2045.5,0.97763]
[1742960859772,0.97762,2045.6,2045.4,42.8429]
[1742960859972,0.97762,2045.6,2045.5,0.97763]
[1742960860279,0.97762,2045.6,2045.4,43.82055]
[1742960862280,0.97763,2045.5,2045.4,43.82055]
[1742960862481,0.97762,2045.6,2045.4,43.82055]
[1742960862683,0.97759,2045.6,2045.4,43.82055]
[1742960862878,0.97763,2045.5,2045.4,42.8429]
[1742960863272,0.97763,2045.5,2045.4,41.4909]
[1742960863475,0.97763,2045.5,2045.4,40.8]
[1742960863973,1.62753,2045.5,2045.4,40.8]
[1742960864887,1.62753,2045.5,2045.4,41.77768]
[1742960865079,1.62753,2045.5,2045.4,40.8]
[1742960865674,1.62753,2045.5,2045.4,41.77768]
[1742960866484,1.62753,2045.5,2045.4,40.8]
[1742960867381,0.97773,2045.3,2045.2,3.848]
[1742960867580,0.97778,2045.2,2045.1,2.075]
[1742960867880,1.3837,2045.2,2045.1,43.85282]
[1742960868277,0.6778,2045.4,2045.1,43.85282]
[1742960868478,4.19278335,2045.5,2045.3,0.97768]
[1742960868981,4.19278335,2045.5,2045.4,0.97768]
[1742960869185,4.19276335,2045.5,2045.3,0.97769]
[1742960869375,4.19276335,2045.5,2045.2,0.7068]
[1742960869578,1.3837,2045.4,2045.3,2.36812]
[1742960870284,1.3837,2045.4,2045.3,2.36813]
[1742960874282,1.40393335,2045.5,2045.4,0.97768]
[1742960874786,0.00733335,2045.5,2045.4,0.97768]
[1742960874990,1.3966,2045.9,2045.8,0.97749]
[1742960876179,1.3966,2045.9,2045.8,1.64329]
[1742960877087,0.68923335,2046.1,2046.0,0.97739]
[1742960877281,0.00733335,2046.1,2046.0,0.97739]
[1742960877486,0.00733335,2046.1,2046.0,1.68019]
[1742960878385,1.30043335,2046.1,2046.0,1.68019]
[1742960880298,2.27778335,2046.1,2046.0,1.68019]
[1742960884688,1.30043335,2046.1,2046.0,1.68019]
[1742960886694,0.00733335,2046.1,2046.0,1.68019]
[1742960887396,0.00733335,2046.1,2046.0,4.88799]
[1742960891102,0.00733335,2046.1,2046.0,45.68799]
[1742960892602,0.00733335,2046.1,2046.0,47.84799]
[1742960892805,0.00733335,2046.1,2046.0,45.68799]
[1742960896213,4.18495,2046.6,2046.2,0.9773]
[1742960896214,3.2078,2046.6,2046.2,0.9773]
[1742960896401,0.6397,2046.7,2046.4,3.2078]
[1742960896706,0.6397,2046.7,2046.3,2.44314]
[1742960896707,1.3571,2046.6,2046.5,2.36406]
[1742960896909,1.3571,2046.6,2046.5,43.16406]
[1742960897704,1.3571,2046.6,2046.5,44.55506]
[1742960898307,1.3571,2046.6,2046.5,42.47426]
[1742960899915,1.3571,2046.6,2046.5,43.86526]
[1742960900613,1.3695722,2046.6,2046.5,43.86526]
[1742960904706,1.3571,2046.6,2046.5,43.86526]
[1742960905011,1.49429422,2046.6,2046.5,43.86526]
[1742960909317,1.49459878,2046.6,2046.5,43.86526]
[1742960910216,0.13749878,2046.6,2046.5,43.86526]
[1742960917114,0.00733335,2046.8,2046.5,44.8781]
[1742960917316,0.00733335,2046.8,2046.7,4.18486]
[1742960917512,0.6566,2047.2,2047.1,0.97687]
[1742960917709,0.6566,2047.2,2047.1,4.18467]
[1742960918322,0.6566,2047.2,2047.1,0.97687]
[1742960918827,2.0197,2047.2,2047.1,0.97687]
[1742960919017,2.99654,2047.2,2046.9,3.21233335]
[1742960919209,2.0507,2047.1,2047.0,0.97692]
[1742960921719,1.368,2047.1,2047.0,4.18472]
[1742960921924,1.368,2047.1,2047.0,5.50782]
[1742960922725,1.368,2047.1,2047.0,4.18472]
[1742960924226,1.368,2047.1,2047.0,0.97692]
[1742960930031,1.368,2047.1,2047.0,2.31032]
[1742960930423,1.7898642,2047.1,2047.0,3.59092]
[1742960936532,1.7898642,2047.1,2047.0,1.65102]
[1742960936938,1.7898642,2047.1,2047.0,2.95612]
[1742960937535,1.7898642,2047.1,2047.0,6.16392]
[1742960939132,1.7898642,2047.1,2047.0,2.95612]
[1742960939441,1.7898642,2047.1,2047.0,6.16392]
[1742960940426,1.7898642,2047.1,2047.0,0.97692]
[1742960940939,2.4635642,2047.1,2047.0,0.97692]
[1742960941434,3.4404342,2047.1,2046.9,0.98428335]
[1742960941645,2.0764,2047.0,2046.9,0.98430335]
[1742960942636,2.4982642,2047.0,2046.9,0.98430335]
[1742960946532,2.4982642,2047.0,2046.5,40.8]
[1742960946840,4.5793,2046.9,2046.5,40.8]
[1742960947037,2.34854,2046.8,2046.7,0.97704]
[1742960947543,2.7704042,2046.8,2046.7,0.97704]
[1742960947745,0.97707,2046.7,2046.6,0.97706]
[1742960947943,3.75887,2046.7,2046.6,0.97706]
[1742960948746,3.2036642,2046.7,2046.6,0.97706]
[1742960948940,1.7933642,2046.7,2046.6,0.97706]
[1742960949245,1.7933642,2046.7,2046.6,1.63076]
[1742960950642,1.7933642,2046.7,2046.6,45.63856]
[1742960950643,0.4218642,2046.7,2046.6,45.63856]
[1742960951034,0.4218642,2046.7,2046.6,46.91816]
[1742960955453,0.98408335,2047.4,2047.2,0.97681]
[1742960955751,2.0199,2047.3,2047.2,0.97681]
[1742960961253,1.3313,2047.3,2047.2,0.97681]
[1742960962054,0.00733335,2047.4,2047.3,0.97677]
[1742960962251,1.38453335,2047.4,2047.3,6.27437]
[1742960964258,1.38453335,2047.4,2047.3,2.37317]
[1742960965959,1.38453335,2047.4,2047.3,0.97677]
[1742960968359,1.38453335,2047.4,2047.3,2.30097]
[1742960972261,3.2078,2047.8,2047.7,0.97658]
[1742960972456,3.8916,2047.8,2047.7,0.97658]
[1742960973866,5.1881,2047.8,2047.7,0.97658]
[1742960974750,1.9803,2047.8,2047.7,0.97658]
[1742960975354,2.95684,2047.8,2047.7,0.97658]
[1742960975553,6.16464,2047.8,2047.7,0.97658]
[1742960975750,5.1881,2047.8,2047.7,0.97658]
[1742960975950,6.16464,2047.8,2047.7,0.97658]
[1742960976669,5.1881,2047.8,2047.7,0.97658]
[1742960977365,1.9803,2047.8,2047.7,0.97658]
[1742960978457,1.9803,2047.8,2047.7,41.77658]
[1742960980873,2.95684,2047.8,2047.7,0.97658]
[1742960984371,0.97658,2047.7,2047.6,0.97659]
[1742960984571,0.97663,2047.6,2047.5,40.80733335]
[1742960984757,0.97663,2047.6,2047.5,0.00733335]
[1742960985165,2.2963,2047.7,2047.6,0.97663]
[1742960986471,2.29632,2047.7,2047.6,0.97663]
[1742960987272,1.3197,2047.7,2047.6,0.97663]
[1742960988174,1.3197,2047.7,2047.6,2.28243]
[1742960988374,1.3197,2047.7,2047.6,0.97663]
[1742960989170,2.29628,2047.7,2047.6,2.29783]
[1742960989476,0.97663,2047.6,2047.5,0.98398335]
[1742960989772,1.2856,2047.6,2047.5,0.98398335]
[1742960990072,1.2856,2047.6,2047.5,2.30518335]
[1742960991467,2.26223,2047.6,2047.5,2.30518335]
[1742960991770,1.2856,2047.6,2047.5,2.30518335]
[1742960995371,1.2856,2047.6,2047.5,0.00733335]
[1742960995571,2.26223,2047.6,2047.5,0.00733335]
[1742960995967,2.26223,2047.6,2047.5,0.98401335]
[1742960998373,2.26223,2047.6,2047.5,0.00733335]
[1742960998776,2.26223,2047.6,2047.5,0.98401335]
[1742961000079,2.93043,2047.6,2047.5,0.98401335]
[1742961000478,2.93043,2047.6,2047.5,0.00733335]
[1742961001179,2.93043,2047.6,2047.5,0.98401335]
[1742961001573,2.26223,2047.6,2047.5,2.37361335]
[1742961001774,2.26223,2047.6,2047.5,2.06903335]
[1742961002484,2.26223,2047.6,2047.5,0.00733335]
[1742961003181,2.4417,2047.5,2046.8,51.68444]
[1742961003375,0.97689,2047.1,2047.0,0.97687]
[1742961003574,0.97689,2047.1,2047.0,2.36647]
[1742961003778,1.9554,2047.2,2047.1,0.97687]
[1742961004277,2.93222,2047.2,2047.1,0.97687]
[1742961004879,0.97687,2047.1,2047.0,2.36647]
[1742961005085,2.28507,2047.1,2047.0,2.36647]
[1742961005285,0.97692,2047.0,2046.9,42.45638335]
[1742961005478,2.28512,2047.0,2046.9,41.47943335]
[1742961005677,2.28512,2047.0,2046.9,0.67943335]
[1742961005880,1.3082,2047.0,2046.9,1.65640335]
[1742961006181,1.3082,2047.0,2046.9,3.01660335]
[1742961006678,1.3082,2047.0,2046.9,0.98430335]
[1742961007177,6.3998,2047.3,2047.2,0.97682]
[1742961007577,8.67587,2047.3,2047.2,0.97682]
[1742961008275,8.68833974,2047.3,2047.2,2.39382]
[1742961008487,8.68833974,2047.3,2047.2,1.417]
[1742961008689,0.97682,2047.2,2047.1,2.29823]
[1742961008982,2.27612,2047.2,2047.1,2.29823]
[1742961009287,2.28858974,2047.2,2047.1,2.29823]
[1742961010288,1.31176974,2047.2,2047.1,2.29823]
[1742961010482,2.28858974,2047.2,2047.1,2.29823]
[1742961010683,1.31176974,2047.2,2046.9,0.98426335]
[1742961010982,0.97692,2047.0,2046.9,0.98430335]
[1742961011488,2.28818974,2047.0,2046.9,1.32363335]
[1742961012084,1.31126974,2047.0,2046.9,2.30060335]
[1742961012290,0.01246974,2047.0,2046.9,2.30060335]
[1742961012887,1.2988,2047.2,2047.1,0.83970281]
[1742961013088,2.27562,2047.2,2047.1,0.83970281]
[1742961013586,2.27562,2047.2,2047.1,2.22010281]
[1742961014384,3.2078,2047.3,2047.2,0.97682]
[1742961014593,4.6099,2047.3,2047.2,2.27932]
[1742961015183,1.4021,2047.3,2047.2,2.27932]
[1742961020688,2.37887,2047.3,2047.2,2.27932]
[1742961020895,1.4021,2047.3,2047.2,2.27932]
[1742961022096,2.37887,2047.3,2047.2,2.27932]
[1742961022398,1.4021,2047.3,2047.2,0.97682]
[1742961022593,2.37887,2047.3,2047.2,2.35962]
[1742961022791,1.4021,2047.3,2047.2,2.35962]
[1742961029097,2.37887,2047.3,2047.2,2.35962]
[1742961030707,1.4021,2047.3,2047.2,2.35962]
[1742961033603,0.9766,2047.7,2047.3,2.44194]
[1742961033812,2.0277,2047.6,2047.5,0.97668]
[1742961034107,2.0277,2047.6,2047.5,2.30088]
[1742961036003,1.3772,2047.6,2047.5,2.30088]
[1742961036197,3.2078,2047.8,2047.7,0.97658]
[1742961036810,4.5171,2047.8,2047.7,2.30128]
[1742961039001,1.3093,2047.8,2047.7,2.30128]
[1742961039607,2.28586,2047.8,2047.7,0.97658]
[1742961039902,1.984,2047.8,2047.7,0.97658]
[1742961040101,1.3093,2047.8,2047.7,0.97658]
[1742961041315,1.3093,2047.8,2047.7,2.38258]
[1742961049127,1.3093,2047.8,2047.7,0.97658]
[1742961049324,1.3093,2047.8,2047.6,3.2078]
[1742961049325,2.28584,2047.8,2047.6,5.501]
[1742961049529,2.28586,2047.8,2047.6,5.501]
[1742961049711,2.31178,2047.7,2047.6,4.5244]
[1742961049916,1.3352,2047.7,2047.5,1.64978]
[1742961050224,1.9972,2047.6,2047.5,1.64978]
[1742961053225,2.97383,2047.6,2047.5,1.64978]
[1742961054219,2.97383,2047.6,2047.5,0.6731]
[1742961054424,1.9972,2047.6,2047.3,3.2078]
[1742961054721,0.97676,2047.4,2047.1,0.97687]
[1742961054927,2.0028,2047.3,2047.2,0.97682]
[1742961055223,2.6478,2047.3,2047.2,0.97682]
[1742961057724,3.62457,2047.3,2047.1,0.97685]
[1742961057926,1.3747,2047.2,2047.1,0.97685]
[1742961058325,2.35155,2047.2,2047.0,4.84649]
[1742961058513,2.35155,2047.2,2047.0,3.2078]
[1742961058714,1.3747,2047.1,2047.0,3.2078]
[1742961058923,1.3747,2047.1,2047.0,4.18472]
[1742961060324,1.3747,2047.1,2046.9,2.28116335]
[1742961060529,0.6689,2047.0,2046.9,0.98426335]
[1742961061438,1.64582,2047.0,2046.9,1.30423335]
[1742961061621,1.64582,2047.0,2046.9,0.00733335]
[1742961061821,2.34362,2047.0,2046.9,0.00733335]
[1742961062323,5.53462,2047.0,2046.9,0.00733335]
[1742961063421,5.92350986,2047.0,2046.9,0.00733335]
[1742961064326,5.53462,2047.0,2046.9,0.00733335]
[1742961066434,6.92992,2047.0,2046.9,0.00733335]
[1742961067135,3.73892,2047.0,2046.9,0.00733335]
[1742961070830,0.97711,2046.6,2046.5,51.59746]
[1742961071142,0.9772,2046.4,2046.3,2.28121]
[1742961071634,1.63049,2046.5,2046.4,0.9772]
[1742961072036,1.63049,2046.5,2046.3,2.5848]
[1742961072233,0.9772,2046.4,2046.3,3.56201]
[1742961072631,0.9772,2046.4,2046.3,2.5848]
[1742961072830,1.63049,2046.5,2046.3,3.56202]
[1742961073435,0.6533,2046.5,2046.4,0.9772]
[1742961073630,0.97716,2046.5,2046.4,2.258]
[1742961074032,4.19221335,2046.7,2046.4,1.2808]
[1742961074234,0.00733335,2046.7,2046.5,1.3048]
[1742961074429,0.00733335,2046.7,2046.6,1.68201]
[1742961075635,0.00733335,2046.7,2046.6,2.98681]
[1742961078037,0.98439335,2046.7,2046.6,2.98681]
[1742961078239,0.00733335,2046.7,2046.6,2.98681]
[1742961078433,0.00733335,2046.7,2046.4,0.97717]
[1742961078638,0.97711,2046.6,2046.5,1.3187]
[1742961079034,1.62211,2046.6,2046.5,2.29586]
[1742961079640,0.645,2046.6,2046.5,2.29586]
[1742961079834,3.19933335,2046.7,2046.6,0.97711]
[1742961080034,4.17639335,2046.7,2046.6,2.29581]
[1742961080236,4.17639335,2046.7,2046.6,1.3187]
[1742961080934,7.38419335,2046.7,2046.6,1.3187]
[1742961081345,0.97716,2046.5,2046.4,1.66756]
[1742961081646,0.97713,2046.6,2046.5,0.97714]
[1742961081940,0.97713,2046.6,2046.5,2.37524]
[1742961082338,0.97716,2046.5,2046.4,0.6904]
[1742961082543,1.67766,2046.5,2046.4,1.3981]
[1742961083951,1.6901301,2046.5,2046.4,1.3981]
[1742961085048,0.97725,2046.3,2046.2,3.21513335]
[1742961085746,2.30325,2046.3,2046.2,3.21513335]
[1742961085946,2.3157201,2046.3,2046.2,3.21513335]
[1742961086347,2.3157201,2046.3,2046.2,4.55663335]
[1742961087235,2.3157201,2046.3,2046.2,5.53393335]
[1742961087849,2.56853887,2046.3,2046.2,5.53393335]
[1742961088750,1.67029318,2046.3,2046.2,5.53393335]
[1742961089843,0.34429318,2046.3,2046.2,5.53393335]
[1742961092642,1.75999318,2046.3,2046.2,5.53393335]
[1742961092848,0.34429318,2046.3,2046.2,5.53393335]
[1742961094154,1.75999318,2046.3,2046.2,5.53393335]
[1742961095355,1.75999318,2046.3,2046.2,4.55663335]
[1742961097661,1.75999318,2046.3,2046.2,3.21513335]
[1742961099471,4.95199318,2046.3,2046.2,3.21513335]
[1742961104574,1.75999318,2046.3,2046.2,3.21513335]
[1742961106571,2.43099318,2046.3,2046.2,3.21513335]
[1742961106976,2.43099318,2046.3,2046.2,0.00733335]
[1742961107370,3.10939318,2046.3,2046.2,0.00733335]
[1742961110271,4.08664318,2046.3,2046.2,0.00733335]
[1742961111281,4.15311445,2046.3,2046.2,0.00733335]
[1742961112183,3.17586445,2046.3,2046.2,0.00733335]
[1742961113773,3.17586445,2046.3,2045.9,1.9772]
[1742961113976,3.17586445,2046.3,2045.9,0.6845]
[1742961113977,3.2078,2046.0,2045.9,0.6845]
[1742961114377,3.61856445,2046.0,2045.9,0.6845]
[1742961114586,5.62676445,2046.0,2045.9,0.6845]
[1742961115284,4.95546445,2046.0,2045.9,0.6845]
[1742961117475,0.41076445,2046.0,2045.9,0.6845]
[1742961117879,0.41076445,2046.0,2045.9,2.0655]
[1742961118577,0.47723572,2046.0,2045.8,3.2078]
[1742961118789,1.82023572,2046.0,2045.9,2.7409]
[1742961121184,1.82023572,2046.0,2045.9,3.71834]
[1742961122187,1.82023572,2046.0,2045.9,2.7409]
[1742961124389,1.82023572,2046.0,2045.9,3.71834]
[1742961125788,2.79762572,2046.0,2045.9,3.71834]
[1742961125990,2.32039,2046.0,2045.9,3.71834]
[1742961126294,2.86409699,2046.0,2045.9,3.71834]
[1742961127691,1.88670699,2046.0,2045.9,3.71834]
[1742961128189,2.86409699,2046.0,2045.9,3.71834]
[1742961128387,0.54370699,2046.0,2045.9,3.71834]
[1742961132289,0.97714,2046.6,2046.5,0.97714]
[1742961132494,0.97717,2046.5,2046.4,0.97717]
[1742961133589,2.25837,2046.5,2046.4,2.34927]
[1742961133793,2.32484127,2046.5,2046.4,2.34927]
[1742961135501,2.32484127,2046.5,2046.4,3.00227]
[1742961138093,1.34767127,2046.5,2046.4,3.00227]
[1742961138492,2.32483127,2046.5,2046.4,3.00227]
[1742961138692,1.34767127,2046.5,2046.4,3.00227]
[1742961139491,2.32483127,2046.5,2046.4,3.00227]
[1742961139793,1.34767127,2046.5,2046.4,3.00227]
[1742961141300,1.41414254,2046.5,2046.4,3.00227]
[1742961145805,0.13294254,2046.5,2046.4,5.00227]
[1742961148006,0.13294254,2046.5,2046.4,7.50227]
[1742961148201,0.00733335,2046.7,2046.6,0.97711]
[1742961148505,0.00733335,2046.7,2046.6,10.56591]
[1742961148698,0.07380462,2046.7,2046.6,52.77591]
[1742961151211,0.07380462,2046.7,2046.6,4.18491]
[1742961151512,1.45750462,2046.7,2046.6,4.18491]
[1742961151697,2.43456462,2046.7,2046.6,3.2078]
[1742961152611,0.97711,2046.6,2046.5,0.97713]
[1742961152814,2.36081,2046.6,2046.5,0.97713]
[1742961153308,2.36081,2046.6,2046.4,0.97717]
[1742961153512,2.7811,2046.5,2046.4,0.97717]
[1742961153706,2.84757127,2046.5,2046.4,0.97717]
[1742961159812,2.91404254,2046.5,2046.4,0.97717]
[1742961168419,2.7811,2046.5,2046.4,0.97717]
[1742961168622,2.92651231,2046.5,2046.4,0.97717]
[1742961170012,3.90367231,2046.5,2046.4,0.97717]
[1742961170716,2.92651231,2046.5,2046.4,0.97717]
[1742961172524,3.90367231,2046.5,2046.4,0.97717]
[1742961172816,2.92651231,2046.5,2046.4,0.97717]
[1742961173011,3.90367231,2046.5,2046.4,0.97717]
[1742961173212,2.92651231,2046.5,2046.4,0.97717]
[1742961173412,3.90367231,2046.5,2046.4,0.97717]
[1742961173908,2.92651231,2046.5,2046.4,0.97717]
[1742961174717,2.23331231,2046.5,2046.4,0.97717]
[1742961175925,1.55791231,2046.5,2046.4,0.97717]
[1742961182230,2.53507231,2046.5,2046.4,0.97717]
[1742961182431,1.55791231,2046.5,2046.3,2.25501]
[1742961182631,2.0039,2046.4,2046.3,2.25501]
[1742961183325,2.0039,2046.4,2045.9,3.2078]
[1742961183326,5.2117,2046.4,2045.9,3.2078]
[1742961183530,0.14541231,2046.2,2046.1,0.97732]
[1742961183731,0.21188358,2046.2,2046.1,0.97732]
[1742961183929,1.60278358,2046.2,2046.1,2.36872]
[1742961184433,1.60278358,2046.2,2046.1,0.97732]
[1742961185132,2.58008358,2046.2,2046.0,2.33496]
[1742961185433,0.6746,2046.1,2045.9,1.68122]
[1742961185632,0.21188358,2046.0,2045.9,1.68122]
[1742961186135,1.60278358,2046.0,2045.9,0.97744]
[1742961187934,1.60278358,2046.0,2045.9,4.18524]
[1742961189927,0.21188358,2046.0,2045.9,4.18524]
[1742961190127,0.21188358,2046.0,2045.9,6.13524]
[1742961190335,0.21188358,2046.0,2045.9,4.18524]
[1742961191328,1.4014,2046.6,2046.5,0.91068873]
[1742961191528,1.4014,2046.6,2046.4,0.97717]
[1742961191734,1.4014,2046.6,2046.5,0.97716]
[1742961192036,1.4014,2046.6,2046.4,0.97717]
[1742961192234,1.4014,2046.6,2046.5,0.97716]
[1742961192740,2.7275,2046.6,2046.5,0.97716]
[1742961193333,3.70461,2046.6,2046.4,0.97717]
[1742961193531,1.3261,2046.5,2046.4,0.97717]
[1742961195432,1.3261,2046.5,2046.2,3.8625]
[1742961195631,1.3261,2046.5,2046.4,0.9772]
[1742961196238,1.3261,2046.5,2046.2,0.6547]
[1742961196540,0.97722,2046.4,2046.2,0.97727]
[1742961196741,1.3175,2046.3,2046.2,0.97727]
[1742961196941,2.0215,2046.3,2046.2,0.97727]
[1742961198236,2.0215,2046.3,2046.0,0.6663]
[1742961198432,1.3175,2046.2,2046.1,0.97735]
[1742961198638,1.9552,2046.2,2046.1,0.97735]
[1742961198940,2.9325,2046.2,2046.1,0.97735]
[1742961199141,0.97735,2046.1,2046.0,0.97736]
[1742961199341,1.2841,2046.1,2046.0,0.97736]
[1742961200740,1.2841,2046.1,2045.7,0.6954]
[1742961200931,0.6646,2046.0,2045.9,0.97744]
[1742961201635,1.9753,2046.0,2045.9,0.97744]
[1742961201836,0.97745,2045.9,2045.6,3.2078]
[1742961202145,1.3107,2045.9,2045.8,0.97749]
[1742961204342,1.3107,2045.9,2045.8,1.67189]
[1742961205544,1.3107,2045.9,2045.8,0.97749]
[1742961206241,1.3107,2045.9,2045.8,2.38529]
[1742961207144,0.6377,2046.2,2046.1,0.97735]
[1742961207446,0.6559,2046.3,2046.2,0.9773]
[1742961207839,0.97713,2046.6,2046.1,2.44333]
[1742961208038,1.63303,2046.6,2046.5,0.97716]
[1742961208444,3.03402,2046.6,2046.3,1.9598]
[1742961208739,2.0569,2046.6,2046.5,0.97716]
[1742961208948,0.6559,2046.6,2046.5,0.97716]
[1742961209140,0.6559,2046.6,2046.5,2.29116]
[1742961209841,1.63301,2046.6,2046.5,2.29116]
[1742961210243,0.6559,2046.6,2046.5,2.29116]
[1742961210446,1.63301,2046.6,2046.5,2.29116]
[1742961212733,0.6559,2046.6,2046.5,2.29116]
[1742961213244,1.63301,2046.6,2046.5,2.29116]
[1742961213740,0.6559,2046.6,2046.5,2.29116]
[1742961216539,0.00733335,2046.7,2046.6,0.97711]
[1742961216843,14.51316,2047.7,2046.6,0.97711]
[1742961216844,3.2078,2047.6,2047.4,0.9767]
[1742961217141,0.671,2047.5,2047.4,0.97673]
[1742961217339,3.189,2047.8,2047.4,0.97669]
[1742961217641,0.9767,2047.5,2047.3,2.37075]
[1742961217947,0.671,2047.4,2047.3,2.37075]
[1742961219647,0.00733335,2047.6,2047.3,1.394]
[1742961219846,0.00733335,2047.6,2047.5,0.97668]
[1742961220549,0.00733335,2047.6,2047.5,2.93628]
[1742961221949,0.00733335,2047.6,2047.4,3.9125]
[1742961222150,0.98397335,2047.6,2047.4,4.88919]
[1742961222354,0.97668,2047.5,2047.4,4.88919]
[1742961222651,1.63848,2047.5,2047.4,4.88919]
[1742961222848,1.63848,2047.5,2047.4,3.9125]
[1742961223151,0.6618,2047.5,2047.4,4.88923]
[1742961223450,0.6618,2047.5,2047.4,6.21893]
[1742961223656,1.9616,2047.5,2047.4,6.21893]
[1742961224044,2.93828,2047.5,2047.4,6.21893]
[1742961224240,1.9616,2047.5,2047.4,6.21893]
[1742961225357,1.2998,2047.5,2047.4,6.21893]
[1742961225550,0.00733335,2047.6,2047.5,0.97668]
[1742961225751,0.00733335,2047.6,2047.5,2.30638]
[1742961225949,1.29623335,2047.6,2047.5,2.30638]
[1742961226843,0.00733335,2047.6,2047.5,2.30638]
[1742961230470,0.00733335,2047.6,2047.5,5.49338]
[1742961233862,0.00733335,2047.6,2047.5,2.99368]
[1742961234769,1.37793335,2047.6,2047.5,2.99368]
[1742961236469,1.37793335,2047.6,2047.5,2.30638]
[1742961236873,1.37793335,2047.6,2047.5,0.97668]
[1742961238266,1.37793335,2047.6,2047.5,2.33408]
[1742961239274,1.39040395,2047.6,2047.5,2.33408]
[1742961244669,0.01980395,2047.6,2047.5,2.33408]
[1742961260584,0.65890395,2047.6,2047.5,2.33408]
[1742961261096,0.01980395,2047.6,2047.5,2.33408]
[1742961264403,0.01980395,2047.6,2047.5,4.38408]
[1742961265005,0.01980395,2047.6,2047.5,2.33408]
[1742961278510,0.01980395,2047.6,2047.5,4.33408]
[1742961279603,0.01980395,2047.6,2047.5,2.33408]
[1742961283706,0.01980395,2047.6,2047.5,4.66408]
[1742961285116,0.01980395,2047.6,2047.5,2.33408]
[1742961286099,0.01980395,2047.6,2047.5,5.54188]
[1742961289718,0.01980395,2047.6,2047.5,2.33408]
[1742961290016,0.01980395,2047.6,2047.5,5.54188]
[1742961291008,0.01980395,2047.6,2047.5,6.22188]
[1742961291412,0.01980395,2047.6,2047.5,47.02188]
[1742961300125,0.69750395,2047.6,2047.5,47.02188]
[1742961301639,0.01980395,2047.6,2047.5,47.02188]